bitfinex/quotes_BTCUSD_20241206
["timestamp","ask_amount","ask_price","bid_price","bid_amount"]
[1733482114984,0.0004772,98219.0,98218.0,0.88886632]
[1733482115212,0.0004772,98219.0,98218.0,0.84339299]
[1733482115430,0.0004772,98219.0,98218.0,0.58533792]
[1733482116379,0.0004772,98219.0,98218.0,0.38170992]
[1733482116599,0.0004772,98219.0,98218.0,0.60913832]
[1733482116819,0.2041032,98219.0,98218.0,0.58613832]
[1733482117035,0.2041032,98219.0,98218.0,0.02284484]
[1733482117929,0.24496163,98219.0,98218.0,0.02284484]
[1733482118190,0.24496163,98219.0,98218.0,0.00484484]
[1733482118426,0.24496163,98219.0,98218.0,0.02284484]
[1733482118659,0.2041032,98219.0,98218.0,0.018]
[1733482118895,0.2041032,98219.0,98218.0,0.02284576]
[1733482119130,0.2041032,98219.0,98218.0,0.01384576]
[1733482119318,0.4077292,98219.0,98218.0,0.009]
[1733482119570,0.4077292,98219.0,98218.0,0.018]
[1733482120011,0.2041032,98219.0,98218.0,0.018]
[1733482120229,0.0004772,98219.0,98218.0,0.018]
[1733482121671,0.0835772,98219.0,98218.0,0.018]
[1733482122542,0.0835772,98219.0,98218.0,0.009]
[1733482122772,0.0835772,98219.0,98210.0,0.001728]
[1733482123015,0.203643,98211.0,98210.0,0.001728]
[1733482123271,0.2040461,98218.0,98210.0,0.078728]
[1733482123499,0.203636,98215.0,98210.0,0.078728]
[1733482124859,0.20098792,98215.0,98210.0,0.096728]
[1733482125271,0.20098792,98215.0,98210.0,0.087728]
[1733482125495,0.203642,98212.0,98210.0,0.019728]
[1733482127383,0.203642,98212.0,98210.0,0.010728]
[1733482127822,0.203642,98212.0,98210.0,0.019728]
[1733482130105,0.0004181,98213.0,98210.0,0.019728]
[1733482130316,0.0004181,98214.0,98210.0,0.019728]
[1733482130755,0.203639,98213.0,98210.0,0.019728]
[1733482131463,0.0004181,98214.0,98210.0,0.010728]
[1733482131667,0.2036861,98219.0,98217.0,0.20363]
[1733482131668,0.0004181,98218.0,98217.0,0.20363]
[1733482131890,0.0004181,98218.0,98217.0,0.29459388]
[1733482132100,0.0004181,98218.0,98217.0,0.20363]
[1733482132569,0.0004181,98218.0,98217.0,0.34007582]
[1733482132785,0.0004772,98219.0,98217.0,0.20363]
[1733482133829,0.0004772,98219.0,98217.0,0.34007582]
[1733482134060,0.0004772,98219.0,98218.0,0.47222734]
[1733482134466,0.0004772,98219.0,98218.0,0.33578152]
[1733482135260,0.0004772,98219.0,98218.0,0.34478152]
[1733482136028,0.0004772,98219.0,98218.0,0.35378152]
[1733482137814,0.0004772,98219.0,98218.0,0.018]
[1733482138029,0.0004772,98219.0,98218.0,0.10895337]
[1733482138434,0.0004772,98219.0,98218.0,0.10895821]
[1733482138651,0.0004772,98219.0,98218.0,0.018]
[1733482139893,0.0004772,98219.0,98218.0,0.15443732]
[1733482141592,0.0004772,98219.0,98218.0,0.10895582]
[1733482141945,0.0004772,98219.0,98218.0,0.018]
[1733482142145,0.02097313,98219.0,98218.0,0.018]
[1733482142596,0.0004772,98219.0,98218.0,0.018]
[1733482153407,0.0004772,98219.0,98218.0,0.1011]
[1733482154136,0.0004772,98219.0,98218.0,0.19200493]
[1733482154529,0.0004772,98219.0,98218.0,0.1011]
[1733482156328,0.0004772,98219.0,98218.0,0.018]
[1733482156609,0.0004772,98219.0,98218.0,0.10892739]
[1733482157031,0.0004772,98219.0,98218.0,0.018]
[1733482160649,0.0004772,98219.0,98218.0,0.1543574]
[1733482161073,0.0004772,98219.0,98218.0,0.1536864]
[1733482161292,0.04133553,98219.0,98218.0,0.1536864]
[1733482161549,0.14636707,98219.0,98218.0,0.017329]
[1733482161774,0.23123425,98219.0,98218.0,0.017329]
[1733482161992,0.203643,98211.0,98210.0,0.001728]
[1733482162210,0.36226992,98211.0,98210.0,0.001728]
[1733482163560,0.36526992,98211.0,98210.0,0.003728]
[1733482163785,0.44316992,98211.0,98210.0,0.003728]
[1733482164012,0.54416992,98211.0,98210.0,0.003728]
[1733482164494,0.49885982,98211.0,98210.0,0.003728]
[1733482164714,0.44985982,98211.0,98210.0,0.003728]
[1733482164945,0.34029247,98211.0,98210.0,0.003728]
[1733482165161,0.31995982,98211.0,98210.0,0.003728]
[1733482165646,0.31954172,98211.0,98210.0,0.003728]
[1733482165865,0.4154183,98211.0,98210.0,0.003728]
[1733482167224,0.21451018,98211.0,98210.0,0.003728]
[1733482169885,0.21151018,98211.0,98210.0,0.001728]
[1733482170050,0.22551018,98211.0,98210.0,0.003728]
[1733482177026,0.217643,98211.0,98210.0,0.003728]
[1733482179042,0.014,98211.0,98210.0,0.003728]
[1733482179497,0.014,98211.0,98210.0,0.148528]
[1733482179958,0.014,98211.0,98210.0,0.61984122]
[1733482181336,0.005,98211.0,98210.0,0.61884122]
[1733482181566,0.014,98211.0,98210.0,0.48356306]
[1733482181988,0.009,98211.0,98210.0,0.48156306]
[1733482182201,0.0004181,98218.0,98212.0,0.0803]
[1733482182429,5.91e-05,98219.0,98218.0,0.1501]
[1733482182657,5.91e-05,98219.0,98218.0,0.15111801]
[1733482182868,5.91e-05,98219.0,98218.0,0.24188571]
[1733482183097,5.91e-05,98219.0,98218.0,0.2408677]
[1733482185136,5.91e-05,98219.0,98218.0,0.2498677]
[1733482185361,0.0010591,98219.0,98218.0,0.2588677]
[1733482186541,0.0010591,98219.0,98218.0,0.2358677]
[1733482188560,0.0010991,98219.0,98218.0,0.2358677]
[1733482190371,0.0010991,98219.0,98218.0,0.1451]
[1733482191424,0.0010991,98219.0,98218.0,0.2358677]
[1733482192551,0.0010991,98219.0,98218.0,0.1451]
[1733482195951,0.203597,98234.0,98223.0,0.203616]
[1733482195952,0.20314191,98234.0,98223.0,0.203616]
[1733482197376,0.20314191,98234.0,98223.0,0.204616]
[1733482198234,0.20814191,98234.0,98223.0,0.204616]
[1733482199084,0.203597,98233.0,98223.0,0.001]
[1733482199279,0.005,98234.0,98223.0,0.001]
[1733482199629,0.203599,98232.0,98224.0,0.203616]
[1733482200520,0.203599,98232.0,98223.0,0.001]
[1733482200938,0.203599,98232.0,98222.0,0.203618]
[1733482201566,0.203599,98232.0,98224.0,0.001]
[1733482202027,0.208599,98232.0,98222.0,0.203618]
[1733482202247,0.203599,98232.0,98222.0,0.203618]
[1733482202692,0.207599,98232.0,98222.0,0.203618]
[1733482203350,0.207599,98232.0,98222.0,0.204618]
[1733482203575,0.203601,98231.0,98222.0,0.001]
[1733482203818,0.10503154,98231.0,98222.0,0.001]
[1733482204106,0.203626,98220.0,98218.0,5.91e-05]
[1733482204340,0.11288335,98231.0,98218.0,5.91e-05]
[1733482204341,0.203622,98222.0,98218.0,5.91e-05]
[1733482204567,0.203617,98224.0,98218.0,5.91e-05]
[1733482204803,0.203612,98227.0,98218.0,5.91e-05]
[1733482205043,0.203612,98226.0,98218.0,5.91e-05]
[1733482205272,0.203612,98226.0,98222.0,0.009]
[1733482205482,0.203612,98226.0,98218.0,5.91e-05]
[1733482205718,0.203619,98223.0,98218.0,5.91e-05]
[1733482205940,0.203619,98223.0,98218.0,0.0090591]
[1733482206172,0.203619,98223.0,98218.0,5.91e-05]
[1733482206895,0.203619,98223.0,98222.0,0.009]
[1733482207140,0.30865054,98223.0,98222.0,0.009]
[1733482207345,0.203626,98219.0,98218.0,5.91e-05]
[1733482207561,0.30865754,98219.0,98218.0,0.0090591]
[1733482207850,0.39601044,98219.0,98218.0,0.0090591]
[1733482208064,0.39601044,98219.0,98218.0,5.91e-05]
[1733482208700,0.40101044,98219.0,98218.0,0.0010591]
[1733482208908,0.3960107,98219.0,98218.0,5.91e-05]
[1733482209121,0.3960107,98219.0,98218.0,0.0010591]
[1733482209356,0.4010107,98219.0,98218.0,0.0010591]
[1733482210030,0.4100107,98219.0,98218.0,0.0020591]
[1733482210503,0.4050507,98219.0,98218.0,5.91e-05]
[1733482210725,0.4050507,98219.0,98218.0,0.0010591]
[1733482210726,0.4030507,98219.0,98218.0,0.0010591]
[1733482210967,0.4120507,98219.0,98218.0,0.0020591]
[1733482211409,0.4120507,98219.0,98218.0,0.0010591]
[1733482211410,0.4030507,98219.0,98218.0,0.0010591]
[1733482211695,0.4050507,98219.0,98218.0,0.0010591]
[1733482211904,0.4640507,98219.0,98218.0,0.0020591]
[1733482212121,0.4640507,98219.0,98218.0,0.0010591]
[1733482212337,0.4710507,98219.0,98218.0,0.0020591]
[1733482212967,0.4620507,98219.0,98218.0,0.0010591]
[1733482213166,0.4710507,98219.0,98218.0,0.0020591]
[1733482213618,0.39155105,98219.0,98218.0,0.0020591]
[1733482214277,0.33955105,98219.0,98218.0,0.0020591]
[1733482214485,0.03089351,98219.0,98218.0,0.0020591]
[1733482214712,0.02304,98219.0,98218.0,0.0020591]
[1733482217804,0.02304,98219.0,98218.0,0.0788591]
[1733482218282,0.02304,98219.0,98218.0,0.1255591]
[1733482218512,0.02304,98219.0,98218.0,0.14957718]
[1733482218723,0.00904,98219.0,98218.0,0.23836076]
[1733482218928,0.00904,98219.0,98218.0,0.1475591]
[1733482219149,0.00104,98219.0,98218.0,0.1555591]
[1733482219354,0.00104,98219.0,98218.0,0.2917616]
[1733482219567,0.01004,98219.0,98218.0,0.09188647]
[1733482219772,0.01004,98219.0,98218.0,0.0929045]
[1733482219986,0.00104,98219.0,98218.0,0.0919045]
[1733482220195,0.00104,98219.0,98218.0,0.10090223]
[1733482220410,0.00104,98219.0,98218.0,0.01001803]
[1733482220649,4e-05,98223.0,98220.0,0.05]
[1733482220864,4e-05,98223.0,98221.0,0.82687631]
[1733482221061,4e-05,98223.0,98222.0,0.33547373]
[1733482221277,4e-05,98223.0,98222.0,0.44050527]
[1733482221495,4e-05,98223.0,98222.0,0.66350527]
[1733482222585,4e-05,98223.0,98222.0,0.79230527]
[1733482222787,4e-05,98223.0,98222.0,1.01942162]
[1733482223261,0.00104,98223.0,98222.0,1.02842162]
[1733482223679,0.00204,98223.0,98222.0,1.03742162]
[1733482224264,0.00204,98223.0,98222.0,0.81030527]
[1733482224676,0.00204,98223.0,98222.0,1.03743971]
[1733482225105,0.00204,98223.0,98222.0,0.81030527]
[1733482225560,0.000865,98230.0,98226.0,0.510624]
[1733482225802,0.000865,98230.0,98228.0,0.284007]
[1733482226004,0.000865,98230.0,98229.0,0.46452305]
[1733482226218,0.000865,98230.0,98229.0,0.46350527]
[1733482226644,0.001865,98230.0,98229.0,0.59380527]
[1733482226851,0.002865,98230.0,98229.0,0.59380527]
[1733482227076,0.001865,98230.0,98229.0,0.59380527]
[1733482227294,0.000865,98230.0,98229.0,0.59380527]
[1733482227477,0.002865,98230.0,98229.0,0.61180527]
[1733482229268,0.00504,98234.0,98231.0,0.05]
[1733482229476,0.0008649,98240.0,98239.0,0.203585]
[1733482229700,0.0008649,98240.0,98239.0,0.41471654]
[1733482229902,0.0008649,98240.0,98239.0,0.75019027]
[1733482231165,0.0018649,98240.0,98239.0,0.75919027]
[1733482231379,0.0018649,98240.0,98239.0,0.75819142]
[1733482232016,0.0018649,98240.0,98239.0,0.7633239]
[1733482232433,0.0018649,98240.0,98239.0,0.7723239]
[1733482233889,0.0019049,98240.0,98239.0,0.7723239]
[1733482234506,0.0019049,98240.0,98239.0,0.99863569]
[1733482235063,0.0019049,98240.0,98239.0,0.7723239]
[1733482235624,0.0019049,98240.0,98239.0,0.99861747]
[1733482236407,0.0019049,98240.0,98239.0,0.7723239]
[1733482237034,0.0019049,98240.0,98239.0,0.78254453]
[1733482238675,0.0019049,98240.0,98239.0,0.96345663]
[1733482239455,0.0004181,98266.0,98262.0,0.023]
[1733482239664,0.00530511,98267.0,98262.0,0.023]
[1733482240119,0.0781,98266.0,98264.0,0.023]
[1733482240737,0.0781,98266.0,98265.0,0.02807129]
[1733482240738,0.07861262,98266.0,98265.0,0.02807129]
[1733482240939,0.08161262,98266.0,98265.0,0.02807129]
[1733482241148,0.00351262,98266.0,98265.0,0.02807129]
[1733482242175,0.00051262,98266.0,98265.0,0.02807129]
[1733482242378,0.00051262,98266.0,98265.0,0.02907129]
[1733482242591,0.00251262,98266.0,98265.0,0.02907129]
[1733482242800,0.00051262,98266.0,98265.0,0.02907129]
[1733482243232,0.00151262,98266.0,98265.0,0.03007129]
[1733482243713,0.18424416,98266.0,98265.0,0.00707129]
[1733482243933,0.18424416,98266.0,98265.0,0.002]
[1733482244775,0.00151262,98266.0,98265.0,0.002]
[1733482244991,0.00151262,98266.0,98265.0,0.025]
[1733482245197,0.00151262,98266.0,98265.0,0.03006923]
[1733482245785,0.00151262,98266.0,98265.0,0.02906923]
[1733482245991,0.00051262,98266.0,98265.0,0.03706923]
[1733482246166,0.00051262,98266.0,98265.0,0.04606923]
[1733482252361,0.00530511,98267.0,98266.0,0.226529]
[1733482252598,0.00530511,98267.0,98266.0,0.023]
[1733482252599,7.083e-05,98267.0,98266.0,0.023]
[1733482252816,7.083e-05,98267.0,98266.0,0.02807801]
[1733482253907,7.083e-05,98267.0,98266.0,0.04607801]
[1733482255010,7.083e-05,98267.0,98266.0,0.15212712]
[1733482255202,7.083e-05,98267.0,98266.0,0.23082712]
[1733482255362,7.083e-05,98267.0,98266.0,0.22980955]
[1733482257158,7.083e-05,98267.0,98266.0,0.04607801]
[1733482257354,7.083e-05,98267.0,98266.0,0.02307801]
[1733482257556,0.20359783,98267.0,98266.0,0.018]
[1733482257699,0.20359783,98267.0,98266.0,0.01405076]
[1733482258081,0.20401587,98267.0,98266.0,0.018]
[1733482258228,0.20401587,98267.0,98266.0,0.009]
[1733482258453,0.20401587,98267.0,98266.0,0.032]
[1733482258865,0.20401587,98267.0,98266.0,0.025]
[1733482259039,0.20401587,98267.0,98266.0,0.034]
[1733482260455,0.20401587,98267.0,98266.0,0.011]
[1733482260456,0.27603317,98267.0,98266.0,0.011]
[1733482260660,0.44092011,98267.0,98266.0,0.011]
[1733482260858,0.44092011,98267.0,98266.0,0.009]
[1733482261089,0.44092002,98267.0,98266.0,0.018]
[1733482261522,0.44092002,98267.0,98240.0,0.0017296]
[1733482261711,0.203568,98248.0,98240.0,0.0017296]
[1733482261924,0.203568,98248.0,98241.0,0.0050629]
[1733482262094,0.203568,98248.0,98242.0,0.023]
[1733482262728,0.203568,98248.0,98240.0,0.0920663]
[1733482262729,0.203568,98248.0,98244.0,0.023]
[1733482263152,0.203561,98251.0,98241.0,0.023]
[1733482263397,0.203561,98251.0,98246.0,0.023]
[1733482263845,0.203567,98248.0,98243.0,0.023]
[1733482264039,0.203567,98248.0,98247.0,0.02807834]
[1733482264642,0.203567,98248.0,98243.0,0.0903367]
[1733482264817,0.203567,98248.0,98247.0,0.02807834]
[1733482265022,0.203567,98248.0,98247.0,0.023]
[1733482265228,0.203567,98248.0,98247.0,0.02807834]
[1733482265458,0.203567,98248.0,98247.0,0.03707834]
[1733482266867,0.203561,98251.0,98247.0,0.03707834]
[1733482267091,0.407122,98251.0,98248.0,0.023]
[1733482267575,0.407122,98251.0,98250.0,0.023]
[1733482267992,0.407122,98251.0,98246.0,0.023]
[1733482268221,0.411122,98251.0,98247.0,0.001]
[1733482268428,0.407122,98251.0,98250.0,0.023]
[1733482268779,0.411122,98251.0,98250.0,0.001]
[1733482269191,0.407122,98251.0,98250.0,0.001]
[1733482269589,0.407122,98251.0,98250.0,0.01243367]
[1733482269590,0.004,98251.0,98250.0,0.01243367]
[1733482269839,0.004,98251.0,98250.0,0.04053325]
[1733482270017,0.004,98251.0,98250.0,0.11943628]
[1733482270222,0.004,98251.0,98250.0,0.16360463]
[1733482270575,0.004,98251.0,98250.0,0.3641608]
[1733482270804,0.203556,98253.0,98250.0,0.02909958]
[1733482271059,0.203556,98253.0,98251.0,0.023]
[1733482271699,0.0753,98252.0,98251.0,0.023]
[1733482271900,0.20356,98251.0,98250.0,0.009]
[1733482272120,0.19773958,98251.0,98240.0,0.0017296]
[1733482272326,0.20358,98241.0,98240.0,0.0017296]
[1733482272856,0.203572,98246.0,98240.0,0.0017296]
[1733482273074,0.203572,98246.0,98241.0,0.023]
[1733482273282,0.203572,98246.0,98241.0,0.02809597]
[1733482273487,0.407144,98246.0,98241.0,0.02809597]
[1733482273955,0.203572,98246.0,98241.0,0.02809597]
[1733482274119,0.203567,98248.0,98241.0,0.02809597]
[1733482274319,0.00530632,98249.0,98241.0,0.02809597]
[1733482274521,0.203568,98247.0,98241.0,0.02809597]
[1733482274780,0.001,98246.0,98241.0,0.02909597]
[1733482274971,0.006,98246.0,98241.0,0.03009597]
[1733482275199,0.001,98246.0,98241.0,0.02909597]
[1733482275352,0.00530632,98249.0,98241.0,0.02809597]
[1733482275517,0.01330632,98249.0,98241.0,0.03009597]
[1733482275725,0.01330632,98249.0,98241.0,0.02909597]
[1733482275941,0.407132,98248.0,98241.0,0.02909597]
[1733482276156,0.006,98246.0,98241.0,0.03009597]
[1733482276797,0.006,98246.0,98241.0,0.02909597]
[1733482277207,0.007,98246.0,98241.0,0.03009597]
[1733482277423,0.001,98246.0,98241.0,0.02909597]
[1733482277630,0.203566,98248.0,98241.0,0.02809597]
[1733482277863,0.01030632,98249.0,98241.0,0.23167497]
[1733482278071,0.01030632,98249.0,98241.0,0.24067497]
[1733482278285,0.203566,98248.0,98241.0,0.04609597]
[1733482278493,0.203566,98248.0,98241.0,0.02809597]
[1733482278971,0.207566,98248.0,98241.0,0.03009597]
[1733482279199,0.0802,98248.0,98241.0,0.03009597]
[1733482279646,0.0802,98248.0,98241.0,0.025]
[1733482280083,0.203575,98244.0,98241.0,0.025]
[1733482280835,0.40715,98244.0,98241.0,0.025]
[1733482281196,0.203575,98244.0,98241.0,0.023]
[1733482281434,0.40715,98244.0,98241.0,0.032]
[1733482281672,0.40715,98244.0,98241.0,0.041]
[1733482286528,0.203575,98244.0,98241.0,0.041]
[1733482287822,0.00530632,98249.0,98241.0,0.041]
[1733482288027,0.00530632,98249.0,98244.0,0.0484]
[1733482288232,0.00530632,98249.0,98245.0,0.023]
[1733482288701,0.00530632,98249.0,98247.0,0.023]
[1733482288912,0.02619195,98249.0,98247.0,0.023]
[1733482289344,0.02619195,98249.0,98242.0,0.023]
[1733482289345,0.203574,98245.0,98242.0,0.023]
[1733482289522,0.407148,98245.0,98242.0,0.023]
[1733482289946,0.407148,98245.0,98241.0,0.009]
[1733482289947,0.407148,98245.0,98241.0,0.023]
[1733482290156,0.203574,98245.0,98241.0,0.023]
[1733482290409,0.203566,98248.0,98241.0,0.024]
[1733482290789,0.203566,98248.0,98241.0,0.023]
[1733482291006,0.00779312,98247.0,98243.0,0.023]
[1733482291358,0.00779312,98247.0,98236.0,0.20359]
[1733482291359,0.203575,98244.0,98241.0,0.023]
[1733482291578,0.203575,98244.0,98241.0,0.041]
[1733482291787,0.203575,98244.0,98241.0,0.032]
[1733482292916,0.203575,98244.0,98241.0,0.023]
[1733482293096,0.203568,98247.0,98241.0,0.023]
[1733482293308,0.203568,98247.0,98243.0,0.001]
[1733482293766,0.203568,98247.0,98241.0,0.023]
[1733482293984,0.203577,98243.0,98241.0,0.023]
[1733482294114,0.203577,98243.0,98241.0,0.032]
[1733482294403,0.18083154,98242.0,98241.0,0.009]
[1733482294582,0.18083154,98242.0,98221.0,0.09064006]
[1733482294583,0.20358,98241.0,98221.0,0.09064006]
[1733482294790,0.31640474,98241.0,98219.0,0.0764]
[1733482294987,0.30861154,98241.0,98219.0,0.0764]
[1733482295250,0.39668181,98241.0,98219.0,0.0764]
[1733482295470,0.39668181,98241.0,98219.0,0.16704006]
[1733482295663,0.39668181,98241.0,98219.0,0.0764]
[1733482295809,0.40447472,98241.0,98219.0,0.0764]
[1733482296858,0.40947472,98241.0,98240.0,0.0027296]
[1733482297230,0.48857472,98241.0,98240.0,0.0027296]
[1733482297365,0.73857472,98241.0,98240.0,0.0027296]
[1733482297589,0.78497472,98241.0,98240.0,0.0027296]
[1733482297983,0.78797472,98241.0,98240.0,0.0037296]
[1733482298389,0.78297472,98241.0,98240.0,0.0027296]
[1733482298794,0.79197472,98241.0,98240.0,0.0037296]
[1733482299213,0.78897472,98241.0,98240.0,0.0027296]
[1733482299416,0.81108906,98241.0,98240.0,0.0037296]
[1733482300066,0.82105616,98241.0,98240.0,0.0037296]
[1733482300914,0.83168519,98241.0,98240.0,0.0037296]
[1733482302727,0.83168519,98241.0,98240.0,6e-07]
[1733482302928,0.83166559,98241.0,98240.0,6e-07]
[1733482303343,0.83166559,98241.0,98240.0,4e-07]
[1733482304388,2.91066559,98241.0,98240.0,4e-07]
[1733482304818,2.58566559,98241.0,98240.0,4e-07]
[1733482304987,1.08566559,98241.0,98240.0,4e-07]
[1733482305205,1.07666559,98241.0,98240.0,4e-07]
[1733482305576,2.58566559,98241.0,98240.0,4e-07]
[1733482305781,2.59959095,98241.0,98240.0,4e-07]
[1733482305982,2.60859095,98241.0,98240.0,4e-07]
[1733482307101,1.10859095,98241.0,98240.0,4e-07]
[1733482308885,1.10081764,98241.0,98240.0,4e-07]
[1733482309114,1.1085781,98241.0,98240.0,4e-07]
[1733482309757,1.4335781,98241.0,98240.0,4e-07]
[1733482311958,0.203643,98211.0,98210.0,0.001728]
[1733482312176,0.32903884,98211.0,98210.0,0.001728]
[1733482312603,0.33434797,98211.0,98210.0,0.001728]
[1733482313036,0.34334797,98211.0,98210.0,0.001728]
[1733482313255,0.35234797,98211.0,98210.0,0.00330856]
[1733482314081,0.37252942,98211.0,98210.0,0.00330856]
[1733482314529,0.35216512,98211.0,98210.0,0.00330856]
[1733482316104,0.36251787,98211.0,98210.0,0.00330856]
[1733482320990,0.02330913,98211.0,98210.0,0.14650856]
[1733482321401,0.02330913,98211.0,98210.0,0.15225794]
[1733482322309,0.01430913,98211.0,98210.0,0.15125794]
[1733482322513,0.00530913,98211.0,98210.0,0.15125794]
[1733482322758,0.00630913,98211.0,98210.0,0.15425794]
[1733482322955,0.00630913,98211.0,98210.0,0.15125794]
[1733482323162,0.00730913,98211.0,98210.0,0.16025794]
[1733482323567,0.02840344,98211.0,98210.0,0.16025794]
[1733482324172,0.00630913,98211.0,98210.0,0.15525794]
[1733482324426,0.00730913,98211.0,98210.0,0.16425794]
[1733482324620,0.00630913,98211.0,98210.0,0.16025794]
[1733482324889,0.00730913,98211.0,98210.0,0.16525794]
[1733482325054,0.02798712,98211.0,98210.0,0.16525794]
[1733482325461,0.00699281,98211.0,98210.0,0.16525794]
[1733482325710,0.00699281,98211.0,98210.0,0.04505794]
[1733482332086,0.00699281,98211.0,98210.0,0.03930856]
[1733482333122,0.00699281,98211.0,98210.0,0.01630856]
[1733482333123,0.11202435,98211.0,98210.0,0.01630856]
[1733482334379,0.11202435,98211.0,98210.0,0.03930856]
[1733482334609,0.18609562,98211.0,98210.0,0.03930856]
[1733482334814,0.19387674,98211.0,98210.0,0.01630856]
[1733482335025,0.19287674,98211.0,98210.0,0.00730856]
[1733482335231,0.19187674,98211.0,98210.0,0.00230856]
[1733482335482,0.19187674,98211.0,98210.0,0.01130856]
[1733482335483,0.19287674,98211.0,98210.0,0.01130856]
[1733482335696,0.19287674,98211.0,98210.0,0.01530856]
[1733482335697,0.19387674,98211.0,98210.0,0.01530856]
[1733482336630,0.11980547,98211.0,98210.0,0.01530856]
[1733482336915,0.11202435,98211.0,98210.0,0.01530856]
[1733482337610,0.11202435,98211.0,98210.0,0.03830856]
[1733482347354,0.00699281,98211.0,98210.0,0.03830856]
[1733482347507,0.00699281,98211.0,98210.0,0.11680856]
[1733482347708,0.00699281,98211.0,98210.0,0.12162342]
[1733482350569,0.04223604,98211.0,98210.0,0.12162342]
[1733482353708,0.04223604,98211.0,98210.0,0.04312342]
[1733482355015,0.00699281,98211.0,98210.0,0.04312342]
[1733482358252,0.00699281,98211.0,98210.0,0.16842342]
[1733482359312,0.00699281,98211.0,98210.0,0.30484696]
[1733482359721,0.002,98211.0,98210.0,0.30484696]
[1733482360948,0.002,98211.0,98210.0,0.30481816]
[1733482362940,0.002,98211.0,98210.0,0.16842342]
[1733482364915,0.002,98211.0,98210.0,0.30481816]
[1733482367886,0.002,98211.0,98210.0,0.64026568]
[1733482369234,0.002,98211.0,98210.0,0.16842342]
[1733482371834,0.14795814,98211.0,98210.0,0.02012342]
[1733482371973,0.23244693,98211.0,98210.0,0.02410037]
[1733482372324,0.23244693,98211.0,98210.0,0.01530856]
[1733482372760,0.23144693,98211.0,98210.0,0.00630856]
[1733482373189,0.23444693,98211.0,98210.0,0.00330856]
[1733482373636,0.23444693,98211.0,98210.0,0.00430856]
[1733482373637,0.25356575,98211.0,98210.0,0.00430856]
[1733482380011,0.17686575,98211.0,98210.0,0.00430856]
[1733482380467,0.18217526,98211.0,98210.0,0.00430856]
[1733482383073,0.14427548,98211.0,98210.0,0.00430856]
[1733482387877,0.14124866,98211.0,98210.0,0.00430856]
[1733482389612,0.0260983,98211.0,98210.0,0.02730856]
[1733482389762,0.01830951,98211.0,98210.0,0.15200856]
[1733482389978,0.01830951,98211.0,98210.0,0.16087615]
[1733482390393,0.01830951,98211.0,98210.0,0.63207683]
[1733482390551,0.01830951,98211.0,98210.0,0.6316947]
[1733482390975,0.01830951,98211.0,98210.0,0.49566634]
[1733482391221,0.00930951,98211.0,98210.0,0.49466634]
[1733482391442,0.00930951,98211.0,98210.0,0.6306954]
[1733482391602,0.01330951,98211.0,98210.0,0.29590521]
[1733482392012,0.01330951,98211.0,98210.0,0.15987615]
[1733482392226,0.00930951,98211.0,98210.0,0.15887615]
[1733482392647,0.00930951,98211.0,98210.0,0.15987615]
[1733482392822,0.00530951,98211.0,98210.0,0.15987615]
[1733482393026,0.00630951,98211.0,98210.0,0.16887615]
[1733482393479,0.00530951,98211.0,98210.0,0.15987615]
[1733482393661,0.01130951,98211.0,98210.0,0.15987615]
[1733482394934,0.01130951,98211.0,98210.0,0.25057515]
[1733482395131,0.01130951,98211.0,98210.0,0.15987615]
[1733482396057,0.01130951,98211.0,98210.0,0.25052262]
[1733482397204,0.01130951,98211.0,98210.0,0.15987615]
[1733482397428,0.01130951,98211.0,98210.0,0.2504881]
[1733482397618,0.01130951,98211.0,98210.0,0.25048394]
[1733482398324,0.01130951,98211.0,98210.0,0.15987615]
[1733482398733,0.01130951,98211.0,98210.0,0.25048394]
[1733482399081,0.01130951,98211.0,98210.0,0.15987615]
[1733482399282,0.01130951,98211.0,98210.0,0.25051433]
[1733482399894,0.01130951,98211.0,98210.0,0.15987615]
[1733482401169,0.01130951,98211.0,98210.0,0.25051433]
[1733482401509,0.01130951,98211.0,98210.0,0.15987615]
[1733482401714,0.01130951,98211.0,98210.0,0.25051433]
[1733482402354,0.01130951,98211.0,98210.0,0.25051537]
[1733482402773,0.01130951,98211.0,98210.0,0.15987615]
[1733482403033,0.01130951,98211.0,98210.0,0.25051537]
[1733482403412,0.01130951,98211.0,98210.0,0.15987615]
[1733482405939,0.21495251,98211.0,98210.0,0.01217615]
[1733482406153,0.31998405,98211.0,98210.0,0.01217615]
[1733482406475,0.31998405,98211.0,98210.0,0.00330856]
[1733482407131,0.34080006,98211.0,98210.0,0.00330856]
[1733482407349,0.34080006,98211.0,98210.0,0.02630856]
[1733482407578,0.43760362,98211.0,98210.0,0.02630856]
[1733482409426,0.43760362,98211.0,98210.0,0.00330856]
[1733482411771,0.34857045,98211.0,98210.0,0.00330856]
[1733482422348,0.34857214,98211.0,98210.0,0.02630856]
[1733482423016,0.22272459,98211.0,98210.0,0.02630856]
[1733482423208,0.21495251,98211.0,98210.0,0.10690856]
[1733482423431,0.21495251,98211.0,98210.0,0.11429555]
[1733482427673,0.01130951,98211.0,98210.0,0.15949555]
[1733482427891,0.01130951,98211.0,98210.0,0.36314055]
[1733482428100,0.01130951,98211.0,98210.0,0.54460091]
[1733482428299,0.0008654,98220.0,98210.0,0.69789317]
[1733482428506,0.0008654,98220.0,98219.0,0.44554102]
[1733482428685,0.0008654,98220.0,98219.0,0.64427862]
[1733482428886,0.0008654,98220.0,98219.0,0.3168532]
[1733482429103,0.0008654,98220.0,98219.0,0.3634532]
[1733482429560,0.0008654,98220.0,98219.0,0.83400977]
[1733482429764,0.0098654,98220.0,98219.0,0.69902164]
[1733482429970,0.0098654,98220.0,98219.0,0.69922191]
[1733482430196,0.0008654,98220.0,98219.0,0.69822191]
[1733482430398,0.0008654,98220.0,98219.0,0.70722191]
[1733482430820,0.0008654,98220.0,98219.0,0.83428244]
[1733482431054,0.0008654,98220.0,98219.0,0.69822191]
[1733482431470,0.0018654,98220.0,98219.0,0.70722191]
[1733482431722,0.0008654,98220.0,98219.0,0.69822191]
[1733482432159,0.0008654,98220.0,98219.0,0.70722191]
[1733482432360,0.0008654,98220.0,98219.0,0.71622191]
[1733482433004,0.0008654,98220.0,98219.0,0.70722191]
[1733482433217,0.0008654,98220.0,98219.0,0.71622191]
[1733482434737,0.0008654,98220.0,98219.0,0.716202]
[1733482434951,0.0008651,98240.0,98219.0,0.512576]
[1733482435165,0.0008651,98240.0,98237.0,0.079]
[1733482435363,0.0008651,98240.0,98238.0,0.023]